[Event "Mongolian Championship Open 2022"]
[Site "Chingis Khentii"]
[Date "2022.05.23"]
[Round "11.5"]
[White "Battulga, Namkhai"]
[Black "Boldoo, Erdenepurev"]
[Result "0-1"]
[ECO "B46"]
[WhiteElo "2402"]
[BlackElo "2371"]
[Annotator "TA"]
[PlyCount "98"]
[EventDate "2022.05.12"]
[EventType "tourn"]
[EventCountry "MGL"]
[SourceTitle "playchess.com"]
[Source "ChessBase"]
[SourceQuality "1"]
[TimeControl "40/5400+30:1800+30"]

{[%evp 11,98,26,27,16,28,35,34,-12,-7,-5,0,-39,-15,-38,38,-8,0,3,0,0,8,-16,-22,-33,-10,-27,-9,-10,0,0,0,0,0,-24,0,0,0,0,0,-14,-13,-96,-3,-3,-3,-77,-10,-161,-156,-151,0,0,0,0,-2,-2,0,-36,-77,-343,-316,-258,-24,-58,-2,-567,-567,-727,-682,-1114,-910,-2235,-1918,-4370,-2977,-1787,-1743,-12841,-12842,-12845,-12845,-12845,-12846,-12846,-12847,-12847,-12847,-12848,-12848]} 1. e4 {[%emt 0:00:00]} c5 {[%emt 0:00:10]} 2. Nf3 {[%emt 0:00:05]} e6 {[%emt 0:00:05]} 3. d4 {[%emt 0:00:03]} cxd4 {[%emt 0:00:05]} 4. Nxd4 {[%emt 0:00:02]} Nc6 {[%emt 0:00:12]} 5. Nc3 {[%emt 0:00:03]} a6 {[%emt 0:00:21]} 6. Be3 {[%emt 0:00:06]} Nf6 {[%emt 0:00:06]} 7. f3 {[%emt 0:00:10] B46: Sicilian: Taimanov: 5 Nc3 a6.} Bb4 {[%emt 0:01:01]} 8. Qd2 {[%emt 0:01:42]} d5 {[%emt 0:00:46]} 9. exd5 {[%emt 0:00:05]} (9. a3 $14 Ba5 10. Nxc6 bxc6 11. O-O-O) 9... Nxd5 $11 {[%emt 0:00:06]} 10. Nxc6 {[%emt 0:00:09]} bxc6 {[%emt 0:00:24]} 11. Bd4 {[%emt 0:02:51]} (11. a3 $5 {[%cal Ra3b4]} Bxc3 12. bxc3 $11) 11... O-O {[%emt 0:03:12] ...c5 is the strong threat.} 12. a3 $1 {[%emt 0:00:07]} Qa5 {[%emt 0:01:35] [#]} (12... Ba5 $15) 13. Rb1 $146 {[%emt 0:00:10]} (13. O-O-O $14 {should be considered.} Bd6 14. Kb1) ({Predecessor:} 13. axb4 Qxa1+ 14. Kf2 a5 15. b5 cxb5 16. Nxd5 exd5 17. Qg5 f6 18. Qxd5+ Be6 19. Qxe6+ Kh8 20. Bd3 Qxh1 21. Qh3 f5 22. Qh6 Rf7 23. Bxf5 {1-0 (23) Tiitta,S-Vertanen,J Turku 1993}) 13... Bxc3 {[%emt 0:02:05]} 14. Bxc3 {[%emt 0:00:05]} Nxc3 {[%emt 0:00:05]} 15. Qxc3 {[%emt 0:00:02]} Qb6 {[%emt 0:00:35][%cal Oe6e5]} 16. Bd3 {[%emt 0:02:20]} a5 {[%emt 0:01:17]} 17. h4 {[%emt 0:00:24]} a4 {[%emt 0:00:34]} 18. h5 {[%emt 0:00:14] And now h6 would win.} h6 {[%emt 0:00:14]} 19. Kf1 {[%emt 0:02:03]} Ba6 {[%emt 0:06:13]} 20. Rh4 {[%emt 0:02:51]} Bxd3+ {[%emt 0:00:09]} 21. cxd3 {[%emt 0:00:09]} Ra5 {[%emt 0:01:14]} 22. Rc1 {[%emt 0:00:11]} Rd5 {[%emt 0:04:25]} 23. Rg4 {[%emt 0:05:49][%csl Gg4][%cal Rc3g7]} Rg5 {[%emt 0:01:01]} 24. Rxg5 hxg5 {[%emt 0:00:01][%mdl 4096] Endgame KQR-KQR} 25. Qe5 {[%emt 0:02:15]} Rd8 {[%emt 0:00:47]} 26. Rc4 {[%emt 0:04:10]} (26. Qe2 $11) 26... Qb3 {[%emt 0:03:14]} (26... Rxd3 $17 {Threatens to win with ...Rd1+.} 27. h6 gxh6 28. Rxa4 Rd1+ 29. Ke2 Rd8) 27. Rxc6 {[%emt 0:02:55]} Qxd3+ {[%emt 0:01:54]} 28. Kg1 {[%emt 0:06:58]} (28. Qe2 $11) 28... Rd5 {[%emt 0:09:25]} (28... g4 $1 $17 29. Rc3 Qb1+ 30. Kh2 gxf3 31. Rxf3 Rd5 32. Qb8+ Kh7) 29. Qc3 $2 {[%emt 0:05:04]} (29. Qe4 $1 $11 Qxe4 30. fxe4 Rd1+ 31. Kh2) 29... Qd1+ $1 $19 {[%emt 0:03:28]} 30. Kh2 {[%emt 0:01:41]} Rd4 {[%emt 0:00:08] Black is more active.} (30... g4 $1 $17 {[%cal Rg4f3]} 31. h6 Rg5) 31. Rc8+ $11 {[%emt 0:01:10]} Kh7 {[%emt 0:00:01] With the idea ...Rh4+.} 32. Qc2+ {[%emt 0:00:11]} Qxc2 {[%emt 0:00:07]} 33. Rxc2 {[%emt 0:00:01] KR-KR} g4 {[%emt 0:01:02]} 34. Kg3 {[%emt 0:02:12]} gxf3 {[%emt 0:00:51]} 35. gxf3 {[%emt 0:00:02][%mdl 8192] [#]} (35. Kxf3 $17 Kh6 36. Rc7) 35... Kh6 $1 $19 {[%emt 0:02:06]} 36. Rc5 {[%emt 0:04:22] [#]} f6 $2 {[%emt 0:02:32]} (36... f5 $1 $19 37. Rc7 Kxh5 38. Rxg7 f4+ 39. Kf2 (39. Kh3 Rd3 $17) 39... Rd2+ 40. Ke1 Rxb2) 37. Rb5 $11 {[%emt 0:00:32]} e5 {[%emt 0:01:13]} ({Black should try} 37... Rd2 $15) 38. Rb4 $2 {[%emt 0:03:34][%mdl 8192]} (38. Rb7 $11) 38... Kxh5 $19 {[%emt 0:00:56] Black is clearly winning.} 39. Kf2 {[%emt 0:02:56]} g5 {[%emt 0:01:29]} 40. Ke3 {[%emt 0:00:00]} Rf4 {[%emt 0:00:00]} 41. Kd2 {[%emt 0:07:07]} g4 {[%emt 0:02:26]} 42. fxg4+ {[%emt 0:00:32]} Kxg4 {[%emt 0:00:07]} 43. Rb8 {[%emt 0:00:08]} f5 {[%emt 0:02:06][%cal Bf6f5,Bf5f4][%mdl 32]} 44. b3 {[%emt 0:00:03]} axb3 {[%emt 0:00:30]} 45. Rxb3 {[%emt 0:00:07]} Rf2+ {[%emt 0:00:14]} 46. Ke1 {[%emt 0:00:07]} Ra2 {[%emt 0:00:03]} 47. Kf1 {[%emt 0:03:50]} e4 {[%emt 0:00:05][%cal Be5e4,Be4e3][%mdl 32]} 48. Rc3 {[%emt 0:00:21]} f4 {[%emt 0:00:04]} 49. Rb3 {[%emt 0:00:20]} e3 {[%emt 0:00:02] Weighted Error Value: White=0.92/Black=0.28 (precise)} 0-1

[Event "Mongolian Championship Open 2022"]
[Site "Chingis Khentii"]
[Date "2022.05.23"]
[Round "11.6"]
[White "Bilguun, Sumiya"]
[Black "Gan-Erdene, Sugar"]
[Result "1/2-1/2"]
[ECO "B47"]
[WhiteElo "2454"]
[BlackElo "2419"]
[Annotator "TA"]
[PlyCount "59"]
[EventDate "2022.05.12"]
[EventType "tourn"]
[EventCountry "MGL"]
[SourceTitle "playchess.com"]
[Source "ChessBase"]
[SourceQuality "1"]
[TimeControl "40/5400+30:1800+30"]

{[%evp 24,59,39,45,48,45,52,52,50,53,59,14,11,18,12,5,13,3,14,0,20,0,0,0,0,0,0,0,0,0,0,0,0,0,0,0,0,4]} 1. e4 {[%emt 0:00:29]} c5 {[%emt 0:00:06]} 2. Nf3 {[%emt 0:00:04]} e6 {[%emt 0:01:59]} 3. d4 {[%emt 0:00:14]} cxd4 {[%emt 0:00:06]} 4. Nxd4 {[%emt 0:00:04]} Nc6 {[%emt 0:00:07]} 5. Nc3 {[%emt 0:00:05]} Qc7 {[%emt 0:00:10]} 6. g3 {[%emt 0:00:06]} a6 {[%emt 0:04:05]} 7. Bg2 {[%emt 0:00:11]} Nf6 {[%emt 0:01:20]} 8. O-O {[%emt 0:00:05]} Nxd4 {[%emt 0:01:22]} 9. Qxd4 {[%emt 0:00:06]} Bc5 {[%emt 0:00:08]} 10. Bf4 {[%emt 0:00:07]} d6 {[%emt 0:00:21]} 11. Qd2 {[%emt 0:00:05]} h6 {[%emt 0:01:51]} 12. Rad1 {[%emt 0:00:23]} e5 {[%emt 0:00:23]} 13. Be3 {[%emt 0:00:05]} Be6 {[%emt 0:13:03] B47: Sicilian: Taimanov: 5 Nc3 Qc7 6 f4, 6 g3 and 6 Be2.} 14. Bxc5 {[%emt 0:00:32]} dxc5 {[%emt 0:00:23]} 15. Nd5 {[%emt 0:00:04]} Bxd5 {[%emt 0:00:06] White is slightly better.} 16. exd5 {[%emt 0:00:04] aiming for d6.} Qd6 {[%emt 0:00:10]} 17. f4 {[%emt 0:00:05] [#] Threatens to win with fxe5.} O-O {[%emt 0:06:06] The position is equal.} 18. fxe5 {[%emt 0:00:08]} Qxe5 {[%emt 0:00:03]} 19. c4 {[%emt 0:00:17]} Qd6 {[%emt 0:00:18] [#]} 20. a4 $146 {[%emt 0:05:02]} ({Predecessor:} 20. Rfe1 Rad8 21. Qf4 Qb6 22. b3 Ne8 23. Re7 Nd6 24. Bh3 Rfe8 25. Rde1 Rxe7 26. Rxe7 {½-½ (44) Lu,S (2615)-Nguyen,D (2500) Olongapo City 2015}) 20... Rab8 {[%emt 0:13:28]} 21. b3 {[%emt 0:16:47]} Rfd8 {[%emt 0:21:10]} 22. Bh3 {[%emt 0:04:37]} b5 {[%emt 0:02:29]} 23. axb5 {[%emt 0:00:56]} axb5 {[%emt 0:00:04]} 24. Bf5 {[%emt 0:00:59]} bxc4 {[%emt 0:00:49]} 25. bxc4 {[%emt 0:00:24]} Rb4 {[%emt 0:02:30]} 26. Rc1 {[%emt 0:08:11]} Re8 {[%emt 0:04:34]} 27. Qf2 {[%emt 0:01:37]} Rb3 {[%emt 0:03:18]} 28. Rce1 {[%emt 0:06:32]} Rbb8 {[%emt 0:03:46]} 29. Ra1 {[%emt 0:04:46]} Ra8 {[%emt 0:02:09]} 30. Rab1 {[%emt 0:00:12] Weighted Error Value: White=0.07 (flawless) /Black=0.03 (flawless)} 1/2-1/2